Workbook

Sheet HP AB
B1: HP AB | C1: HP AB
A2: Date/Time | B2: Voltage | C2: Watts
A3: 2013-04-30T13:00:00 | B3: -4.191873172e-06 | C3: =B3*1018/100*230/0.333/1.73205081 -> -0.01701683888
A4: 2013-04-30T14:00:00 | B4: 4.827794675e-11 | C4: =B4*1018/100*230/0.333/1.73205081 -> 1.959835156e-07
A5: 2013-04-30T15:00:00 | B5: -1.823999621e-10 | C5: -7.404495888e-07
A6: 2013-04-30T16:00:00 | B6: 4.793166712e-11 | C6: 1.945777993e-07
A7: 2013-04-30T17:00:00 | B7: -1.995254133e-10 | C7: -8.099700708e-07
A8: 2013-04-30T18:00:00 | B8: -1.486776173e-10 | C8: -6.035542955e-07
A9: 2013-04-30T19:00:00 | B9: -2.636082045e-10 | C9: -1.070113088e-06
A10: 2013-04-30T20:00:00 | B10: -2.928678928e-10 | C10: -1.188892302e-06
A11: 2013-04-30T21:00:00 | B11: 2.414409437e-10 | C11: 9.801254641e-07
A12: 2013-04-30T22:00:00 | B12: -8.375441712e-11 | C12: -3.399996525e-07
A13: 2013-04-30T23:00:00 | B13: -5.17570571e-10 | C13: -2.101069058e-06
A14: 2013-05-01 | B14: -1.654160641e-10 | C14: -6.715037395e-07
A15: 2013-05-01T01:00:00 | B15: -2.872203026e-10 | C15: -1.165966004e-06
A16: 2013-05-01T02:00:00 | B16: -3.16483106e-10 | C16: -1.284757864e-06
A17: 2013-05-01T03:00:00 | B17: 7.816944742e-12 | C17: 3.173275616e-08
A18: 2013-05-01T04:00:00 | B18: 2.258661483e-10 | C18: 9.168998431e-07
A19: 2013-05-01T05:00:00 | B19: 3.863911147e-11 | C19: 1.568548253e-07
A20: 2013-05-01T06:00:00 | B20: -5.641266664e-11 | C20: -2.290062746e-07
A21: 2013-05-01T07:00:00 | B21: 4.006585345e-10 | C21: 1.626466605e-06
A22: 2013-05-01T08:00:00 | B22: -2.475104044e-09 | C22: -1.004764338e-05
A23: 2013-05-01T09:00:00 | B23: 4.184865391e-10 | C23: 1.698839091e-06
A24: 2013-05-01T10:00:00 | B24: -5.267857349e-10 | C24: -2.138477861e-06
A25: 2013-05-01T11:00:00 | B25: -2.628626928e-10 | C25: -1.067086695e-06
A26: 2013-05-01T12:00:00 | B26: 6.758573702e-10 | C26: 2.743631666e-06
A27: 2013-05-01T13:00:00 | B27: -5.462851353e-10 | C27: -2.21763535e-06
A28: 2013-05-01T14:00:00 | B28: 4.821612805e-10 | C28: 1.957325636e-06
A29: 2013-05-01T15:00:00 | B29: 4.561843856e-10 | C29: 1.851872867e-06
A30: 2013-05-01T16:00:00 | B30: 6.05613455e-10 | C30: 2.458477669e-06
A31: 2013-05-01T17:00:00 | B31: 7.560506044e-11 | C31: 3.069174756e-07
A32: 2013-05-01T18:00:00 | B32: -2.001632974e-10 | C32: -8.125595506e-07
A33: 2013-05-01T19:00:00 | B33: -3.250401553e-11 | C33: -1.319495062e-07
A34: 2013-05-01T20:00:00 | B34: -5.41798515e-10 | C34: -2.19942199e-06
A35: 2013-05-01T21:00:00 | B35: -6.234225477e-10 | C35: -2.530773383e-06
A36: 2013-05-01T22:00:00 | B36: 1.000877823e-09 | C36: 4.063046745e-06
A37: 2013-05-01T23:00:00 | B37: -2.963791161e-10 | C37: -1.203146054e-06
A38: 2013-05-02 | B38: -2.001950804e-10 | C38: -8.126885731e-07
A39: 2013-05-02T01:00:00 | B39: -3.917372457e-10 | C39: -1.590250783e-06
A40: 2013-05-02T02:00:00 | B40: 1.494290694e-10 | C40: 6.066048026e-07
A41: 2013-05-02T03:00:00 | B41: 1.679013308e-12 | C41: 6.81592638e-09
A42: 2013-05-02T04:00:00 | B42: -1.475133121e-11 | C42: -5.98827818e-08
A43: 2013-05-02T05:00:00 | B43: -2.278186652e-10 | C43: -9.248260528e-07
A44: 2013-05-02T06:00:00 | B44: 8.334665675e-10 | C44: 3.383443561e-06
A45: 2013-05-02T07:00:00 | B45: 3.475557549e-10 | C45: 1.410896761e-06
A46: 2013-05-02T08:00:00 | B46: 4.088838057e-10 | C46: 1.659856956e-06
A47: 2013-05-02T09:00:00 | B47: 4.44240755e-10 | C47: 1.803387899e-06
A48: 2013-05-02T10:00:00 | B48: 7.280026249e-10 | C48: 2.955314453e-06
A49: 2013-05-02T11:00:00 | B49: 1.26908278e-10 | C49: 5.151820275e-07
A50: 2013-05-02T12:00:00 | B50: -3.884517219e-10 | C50: -1.576913254e-06
A51: 2013-05-02T15:00:00 | B51: 0.155219929 | C51: 630.1127001
A52: 2013-05-02T16:00:00 | B52: 0.0486769045 | C52: 197.6030779
A53: 2013-05-02T17:00:00 | B53: -7.20559242e-06 | C53: -0.02925098165
A54: 2013-05-02T18:00:00 | B54: -5.689432928e-06 | C54: -0.02309615761
A55: 2013-05-02T19:00:00 | B55: -6.225664001e-06 | C55: -0.02527297866
A56: 2013-05-02T20:00:00 | B56: -7.604867338e-06 | C56: -0.03087183149
A57: 2013-05-02T21:00:00 | B57: -6.668563521e-06 | C57: -0.02707092184
A58: 2013-05-02T22:00:00 | B58: -6.347924552e-06 | C58: -0.02576929332
A59: 2013-05-02T23:00:00 | B59: -6.895221957e-06 | C59: -0.02799103796
A60: 2013-05-03 | B60: -7.708195627e-06 | C60: -0.03129129095
A61: 2013-05-03T01:00:00 | B61: -6.344518856e-06 | C61: -0.02575546795
A62: 2013-05-03T02:00:00 | B62: -6.981764879e-06 | C62: -0.0283423575
A63: 2013-05-03T03:00:00 | B63: -6.914631407e-06 | C63: -0.0280698303
A64: 2013-05-03T04:00:00 | B64: -4.984822231e-06 | C64: -0.02023580229
A65: 2013-05-03T05:00:00 | B65: -3.707887944e-06 | C65: -0.01505210896
A66: 2013-05-03T06:00:00 | B66: -6.363713476e-06 | C66: -0.02583338819
A67: 2013-05-03T07:00:00 | B67: 0.1110868291 | C67: 450.9551208
A68: 2013-05-03T08:00:00 | B68: 0.1649391178 | C68: =B68*1018/100*230/0.333/1.73205081 -> 669.567584
A69: 2013-05-03T09:00:00 | B69: 0.1659837047 | C69: 673.8080672
A70: 2013-05-03T10:00:00 | B70: 0.1673644854 | C70: 679.413323
A71: 2013-05-03T11:00:00 | B71: 0.2193878659 | C71: 890.6013644
A72: 2013-05-03T12:00:00 | B72: 0.1782000946 | C72: 723.4002972
A73: 2013-05-03T13:00:00 | B73: 0.1931263124 | C73: 783.9930279
A74: 2013-05-03T14:00:00 | B74: 0.1755803819 | C74: 712.7656174
A75: 2013-05-03T15:00:00 | B75: 0.1112548206 | C75: 451.6370794
A76: 2013-05-03T16:00:00 | B76: -5.165828496e-06 | C76: -0.02097059419
A77: 2013-05-03T17:00:00 | B77: -5.936343247e-06 | C77: -0.02409848591
A78: 2013-05-03T18:00:00 | B78: -5.756137397e-06 | C78: -0.02336694328
A79: 2013-05-03T19:00:00 | B79: -4.805007582e-06 | C79: -0.01950584774
A80: 2013-05-03T20:00:00 | B80: -5.281528359e-06 | C80: -0.02144027585
A81: 2013-05-03T21:00:00 | B81: -6.381672441e-06 | C81: -0.02590629231
A82: 2013-05-03T22:00:00 | B82: -5.989811003e-06 | C82: -0.02431553737
A83: 2013-05-03T23:00:00 | B83: -4.832367678e-06 | C83: -0.01961691559
A84: 2013-05-04 | B84: -5.68752721e-06 | C84: -0.02308842138
A85: 2013-05-04T01:00:00 | B85: -7.057867068e-06 | C85: -0.02865129306
A86: 2013-05-04T02:00:00 | B86: -6.781566378e-06 | C86: -0.02752965504
A87: 2013-05-04T03:00:00 | B87: -7.997974957e-06 | C87: -0.03246764528
A88: 2013-05-04T04:00:00 | B88: -6.111350572e-06 | C88: -0.02480892521
A89: 2013-05-04T05:00:00 | B89: -3.356033739e-06 | C89: -0.01362376271
A90: 2013-05-04T06:00:00 | B90: -3.744824307e-06 | C90: -0.01520205151
A91: 2013-05-04T07:00:00 | B91: -6.874803236e-06 | C91: -0.02790814851
A92: 2013-05-04T08:00:00 | B92: -7.138741107e-06 | C92: -0.02897959987
A93: 2013-05-04T09:00:00 | B93: -6.144107788e-06 | C93: -0.02494190258
A94: 2013-05-04T10:00:00 | B94: -7.573824971e-06 | C94: -0.03074581552
A95: 2013-05-04T11:00:00 | B95: -8.544654297e-06 | C95: -0.0346868809
A96: 2013-05-04T12:00:00 | B96: -6.711880526e-06 | C96: -0.02724676649
A97: 2013-05-04T13:00:00 | B97: -6.791963512e-06 | C97: -0.02757186203
A98: 2013-05-04T14:00:00 | B98: -7.676715028e-06 | C98: -0.03116349598
A99: 2013-05-04T15:00:00 | B99: -3.277637507e-05 | C99: -0.1330551452
A100: 2013-05-04T16:00:00 | B100: -5.687642628e-06 | C100: -0.02308888992
A101: 2013-05-04T17:00:00 | B101: -6.140920757e-06 | C101: -0.02492896488
A102: 2013-05-04T18:00:00 | B102: -6.092943043e-06 | C102: -0.02473420016
A103: 2013-05-04T19:00:00 | B103: -6.525343266e-06 | C103: -0.02648952161
A104: 2013-05-04T20:00:00 | B104: -6.794352985e-06 | C104: -0.02758156206
A105: 2013-05-04T21:00:00 | B105: -6.636631276e-06 | C105: -0.02694129343
A106: 2013-05-04T22:00:00 | B106: -3.937307716e-06 | C106: -0.01598343468
A107: 2013-05-04T23:00:00 | B107: -7.836955426e-06 | C107: -0.03181398919
A108: 2013-05-05 | B108: -6.59130346e-06 | C108: -0.02675728592
A109: 2013-05-05T01:00:00 | B109: -8.184460023e-06 | C109: -0.03322467828
A110: 2013-05-05T02:00:00 | B110: -4.021800868e-06 | C110: -0.01632643321
A111: 2013-05-05T03:00:00 | B111: -5.756525509e-06 | C111: -0.02336851881
A112: 2013-05-05T04:00:00 | B112: -5.642535649e-06 | C112: -0.02290577889
A113: 2013-05-05T05:00:00 | B113: -7.596291015e-06 | C113: -0.03083701605
A114: 2013-05-05T06:00:00 | B114: -6.193868934e-06 | C114: -0.02514390712
A115: 2013-05-05T07:00:00 | B115: -4.997280522e-06 | C115: -0.02028637652
A116: 2013-05-05T08:00:00 | B116: -8.085555984e-06 | C116: -0.03282317899
A117: 2013-05-05T09:00:00 | B117: -6.891067722e-06 | C117: -0.02797417391
A118: 2013-05-05T10:00:00 | B118: -4.875832039e-06 | C118: -0.01979335844
A119: 2013-05-05T11:00:00 | B119: -8.495827085e-06 | C119: -0.03448866765
A120: 2013-05-05T12:00:00 | B120: -7.551418721e-06 | C120: -0.03065485772
A121: 2013-05-05T13:00:00 | B121: -7.58573616e-06 | C121: -0.03079416879
A122: 2013-05-05T14:00:00 | B122: -8.180760186e-06 | C122: -0.03320965885
A123: 2013-05-05T15:00:00 | B123: -3.72187768e-06 | C123: -0.01510890006
A124: 2013-05-06T10:00:00 | B124: 0.2481067684 | C124: 1007.185268
A125: 2013-05-06T11:00:00 | B125: 0.2062587534 | C125: 837.3039521
A126: 2013-05-06T12:00:00 | B126: 0.1542406621 | C126: 626.1373825
A127: 2013-05-06T13:00:00 | B127: 0.1400339743 | C127: 568.4655713
A128: 2013-05-06T14:00:00 | B128: 0.1610389405 | C128: 653.7348796
A129: 2013-05-06T15:00:00 | B129: 0.1557105959 | C129: 632.1045542
A130: 2013-05-06T16:00:00 | B130: 0.01223020531 | C130: 49.64831345
A131: 2013-05-06T17:00:00 | B131: -3.122896252e-06 | C131: -0.01267734499
A132: 2013-05-06T18:00:00 | B132: -6.374106083e-06 | C132: =B132*1018/100*230/0.333/1.73205081 -> -0.02587557681
A133: 2013-05-06T19:00:00 | B133: -7.100363432e-06 | C133: -0.02882380634
A134: 2013-05-06T20:00:00 | B134: -6.528792715e-06 | C134: -0.02650352459
A135: 2013-05-06T21:00:00 | B135: -6.933648195e-06 | C135: -0.02814702863
A136: 2013-05-06T22:00:00 | B136: -7.1426744e-06 | C136: -0.028995567
A137: 2013-05-06T23:00:00 | B137: -7.011622474e-06 | C137: -0.02846356391
A138: 2013-05-07 | B138: -5.930773784e-06 | C138: -0.02407587676
A139: 2013-05-07T01:00:00 | B139: -5.315222981e-06 | C139: -0.0215770586
A140: 2013-05-07T02:00:00 | B140: -8.157981869e-06 | C140: -0.03311719066
A141: 2013-05-07T03:00:00 | B141: -5.119817402e-06 | C141: -0.02078381293
A142: 2013-05-07T04:00:00 | B142: -5.300506237e-06 | C142: -0.02151731622
A143: 2013-05-07T05:00:00 | B143: -3.232436877e-06 | C143: -0.01312202332
A144: 2013-05-07T06:00:00 | B144: -4.463431042e-06 | C144: -0.0181192235
A145: 2013-05-07T07:00:00 | B145: 0.1170302204 | C145: 475.0822181
A146: 2013-05-07T08:00:00 | B146: 0.1690538145 | C146: 686.2711264
A147: 2013-05-07T09:00:00 | B147: 0.1604566295 | C147: 651.370998
A148: 2013-05-07T10:00:00 | B148: 0.1649898815 | C148: 669.7736586
A149: 2013-05-07T11:00:00 | B149: 0.1829002468 | C149: 742.480486
A150: 2013-05-07T12:00:00 | B150: 0.1607499042 | C150: 652.5615416
A151: 2013-05-07T13:00:00 | B151: 0.1588605328 | C151: 644.89167
A152: 2013-05-07T14:00:00 | B152: 0.1581572341 | C152: 642.0366409
A153: 2013-05-07T15:00:00 | B153: 0.1541295875 | C153: 625.6864768
A154: 2013-05-07T16:00:00 | B154: 0.008245103009 | C154: 33.47085747
A155: 2013-05-07T17:00:00 | B155: -2.958526608e-06 | C155: -0.01201008918
A156: 2013-05-07T18:00:00 | B156: -7.560252589e-06 | C156: -0.03069071866
A157: 2013-05-07T19:00:00 | B157: -5.994101138e-06 | C157: -0.0243329531
A158: 2013-05-07T20:00:00 | B158: -7.418319996e-06 | C158: -0.03011454568
A159: 2013-05-07T21:00:00 | B159: -4.670793753e-06 | C159: -0.01896100895
A160: 2013-05-07T22:00:00 | B160: -5.189858616e-06 | C160: -0.02106814406
A161: 2013-05-07T23:00:00 | B161: -5.522520395e-06 | C161: -0.02241857898
A162: 2013-05-08 | B162: -7.508509981e-06 | C162: -0.03048067041
A163: 2013-05-08T01:00:00 | B163: -7.230745383e-06 | C163: -0.02935308969
A164: 2013-05-08T02:00:00 | B164: -7.305171124e-06 | C164: -0.02965521973
A165: 2013-05-08T03:00:00 | B165: -6.372668746e-06 | C165: -0.02586974196
A166: 2013-05-08T04:00:00 | B166: -6.034158732e-06 | C166: -0.02449556623
A167: 2013-05-08T05:00:00 | B167: -8.489689775e-06 | C167: -0.03446375334
A168: 2013-05-08T06:00:00 | B168: -5.805310291e-06 | C168: -0.02356655982
A169: 2013-05-08T07:00:00 | B169: 0.1056273109 | C169: 428.7922982
A170: 2013-05-08T08:00:00 | B170: 0.1600224593 | C170: 649.6084914
A171: 2013-05-08T09:00:00 | B171: 0.1477299868 | C171: 599.7074051
A172: 2013-05-08T10:00:00 | B172: 0.1635801193 | C172: 664.0507526
A173: 2013-05-08T11:00:00 | B173: 0.1838501413 | C173: 746.336567
A174: 2013-05-08T12:00:00 | B174: 0.155616157 | C174: 631.7211808
A175: 2013-05-08T13:00:00 | B175: 0.1511389887 | C175: 613.5461913
A176: 2013-05-08T14:00:00 | B176: 0.1420351397 | C176: 576.5892689
A177: 2013-05-08T15:00:00 | B177: 0.1566589936 | C177: 635.9545588
A178: 2013-05-08T16:00:00 | B178: 0.01115931279 | C178: 45.30104324
A179: 2013-05-08T17:00:00 | B179: -3.315122329e-06 | C179: -0.01345768353
A180: 2013-05-08T18:00:00 | B180: -5.77749746e-06 | C180: -0.0234536541
A181: 2013-05-08T19:00:00 | B181: -4.378339723e-06 | C181: -0.01777379672
A182: 2013-05-08T20:00:00 | B182: -6.557774083e-06 | C182: -0.02662117397
A183: 2013-05-08T21:00:00 | B183: -3.56190282e-06 | C183: -0.0144594848
A184: 2013-05-08T22:00:00 | B184: -8.448105994e-06 | C184: -0.03429494468
A185: 2013-05-08T23:00:00 | B185: -6.763177775e-06 | C185: -0.02745500682
A186: 2013-05-09 | B186: -6.187715028e-06 | C186: -0.02511892544
A187: 2013-05-09T01:00:00 | B187: -7.990109555e-06 | C187: -0.03243571581
A188: 2013-05-09T02:00:00 | B188: -6.137126621e-06 | C188: -0.02491356265
A189: 2013-05-09T03:00:00 | B189: -4.667268943e-06 | C189: -0.01894670004
A190: 2013-05-09T04:00:00 | B190: -6.723917718e-06 | C190: -0.02729563127
A191: 2013-05-09T05:00:00 | B191: -6.905273869e-06 | C191: -0.02803184353
A192: 2013-05-09T06:00:00 | B192: -5.691201391e-06 | C192: -0.02310333665
A193: 2013-05-09T07:00:00 | B193: 0.1095500004 | C193: 444.7163906
A194: 2013-05-09T08:00:00 | B194: 0.166461615 | C194: 675.748136
A195: 2013-05-09T09:00:00 | B195: 0.1616438741 | C195: 656.1905977
A196: 2013-05-09T10:00:00 | B196: 0.1627913774 | C196: =B196*1018/100*230/0.333/1.73205081 -> 660.848868
A197: 2013-05-09T11:00:00 | B197: 0.1815150893 | C197: 736.8574626
A198: 2013-05-09T12:00:00 | B198: 0.1599666026 | C198: 649.3817418
A199: 2013-05-09T13:00:00 | B199: 0.1633459274 | C199: 663.1000543
A200: 2013-05-09T14:00:00 | B200: 0.1625762513 | C200: 659.975567
... 5487 more rows
